bitfinex/quotes_SOLUSD_20220208
["timestamp","ask_amount","ask_price","bid_price","bid_amount"]
[1644326646143,0.03473726,112.69,112.56,18.79]
[1644326646945,0.03473726,112.69,112.57,34.4460835]
[1644326647154,0.03473726,112.69,112.57,53.2360835]
[1644326647350,44.44243726,112.69,112.58,1.91893824]
[1644326647546,44.4077,112.69,112.58,1.91893824]
[1644326647745,0.03473726,112.68,112.59,12.79]
[1644326647946,0.03473726,112.71,112.59,12.79]
[1644326648247,0.03473726,112.71,112.6,43.02990061]
[1644326648451,4.47273726,112.71,112.6,43.02990061]
[1644326648649,4.47273726,112.71,112.6,43.27990061]
[1644326648851,13.3206,112.68,112.6,43.27990061]
[1644326650049,13.3206,112.68,112.6,43.02990061]
[1644326651750,13.3206,112.68,112.6,43.27990061]
[1644326652153,13.3206,112.68,112.6,43.02990061]
[1644326653555,13.5706,112.68,112.6,43.27990061]
[1644326653955,13.5706,112.68,112.6,43.02990061]
[1644326654357,16.09505699,112.68,112.6,43.02990061]
[1644326655456,15.84505699,112.68,112.6,43.02990061]
[1644326656256,13.3206,112.68,112.6,43.27990061]
[1644326657155,2.55919425,112.69,112.6,96.55990061]
[1644326657355,15.87739425,112.7,112.6,104.47035613]
[1644326657555,0.03473726,112.69,112.6,96.55990061]
[1644326657955,0.03473726,112.69,112.6,102.55990061]
[1644326658161,13.35343726,112.69,112.6,43.27990061]
[1644326659288,15.87789425,112.69,112.6,43.02990061]
[1644326659488,15.84315699,112.69,112.6,43.02990061]
[1644326660089,16.09315699,112.69,112.6,43.02990061]
[1644326660490,15.84315699,112.69,112.6,43.02990061]
[1644326660690,13.3187,112.69,112.6,45.19035613]
[1644326660889,0.03473726,112.69,112.6,98.47035613]
[1644326661089,0.03473726,112.69,112.6,104.47035613]
[1644326661693,0.03473726,112.69,112.6,117.26035613]
[1644326662996,0.03473726,112.69,112.6,130.57615613]
[1644326663597,0.03473726,112.69,112.6,69.13570061]
[1644326663896,0.03473726,112.69,112.6,124.32615613]
[1644326664096,0.03473726,112.69,112.6,77.04615613]
[1644326664295,0.03473726,112.69,112.6,57.73035613]
[1644326664595,0.03473726,112.69,112.6,63.73035613]
[1644326664797,0.03473726,112.69,112.6,117.01035613]
[1644326665197,27.31071073,112.74,112.62,53.28]
[1644326665398,0.03563278,112.69,112.64,53.28]
[1644326665603,2.55464288,112.73,112.65,12.79]
[1644326665798,2.55464288,112.73,112.66,34.29463939]
[1644326666097,0.03563278,112.73,112.66,34.29463939]
[1644326666297,23.5698,112.74,112.66,34.54463939]
[1644326666701,36.8829,112.74,112.66,34.54463939]
[1644326667100,37.1329,112.74,112.66,34.54463939]
[1644326667996,37.16851698,112.74,112.66,34.29463939]
[1644326668203,37.1329,112.74,112.66,34.29463939]
[1644326668403,6.95153544,112.73,112.66,34.29463939]
[1644326668699,13.3167,112.71,112.66,34.29463939]
[1644326669503,0.03561698,112.73,112.66,34.29463939]
[1644326669720,2.51880663,112.73,112.66,34.29463939]
[1644326670003,15.83290663,112.73,112.66,34.29463939]
[1644326670201,23.85541698,112.74,112.66,34.54463939]
[1644326670401,23.8198,112.74,112.66,34.54463939]
[1644326670600,23.8198,112.74,112.66,34.29463939]
[1644326670805,2.5183438,112.73,112.66,34.29463939]
[1644326671006,14.81652349,112.73,112.66,34.29463939]
[1644326671203,13.3171,112.71,112.64,7.68]
[1644326672303,13.5671,112.71,112.64,7.68]
[1644326673206,13.5671,112.71,112.65,36.67660755]
[1644326675205,13.34951698,112.73,112.65,36.92660755]
[1644326675417,13.34951698,112.73,112.65,38.8325064]
[1644326675418,0.03561698,112.73,112.65,38.8325064]
[1644326675604,2.55507159,112.73,112.65,44.8325064]
[1644326675805,2.55507159,112.73,112.65,38.5825064]
[1644326676006,2.51945461,112.73,112.65,36.92660755]
[1644326676203,2.51945461,112.73,112.65,36.67660755]
[1644326676407,2.55507159,112.75,112.65,36.67660755]
[1644326677005,13.3133,112.73,112.61,47.8748]
[1644326677230,4.47261698,112.72,112.61,12.79]
[1644326677406,19.6532101,112.72,112.61,12.79]
[1644326677607,2.55507159,112.71,112.61,12.79]
[1644326678011,2.55507159,112.71,112.62,44.3765103]
[1644326678307,13.3194,112.69,112.62,44.3765103]
[1644326678707,13.5694,112.69,112.62,44.3765103]
[1644326679810,0.25,112.69,112.62,44.3765103]
[1644326680210,13.35361698,112.71,112.62,44.3765103]
[1644326680615,13.35361698,112.71,112.62,44.6265103]
[1644326681316,13.35361698,112.71,112.62,57.9436103]
[1644326682517,13.60361698,112.71,112.62,57.9436103]
[1644326682717,13.60361698,112.71,112.62,44.3765103]
[1644326683117,13.60361698,112.71,112.62,50.3765103]
[1644326684418,13.35361698,112.71,112.62,50.6265103]
[1644326684832,13.35361698,112.71,112.62,44.6265103]
[1644326685032,2.52359969,112.7,112.62,50.6265103]
[1644326685234,2.52359969,112.7,112.62,50.3765103]
[1644326685433,15.84149969,112.7,112.62,50.3765103]
[1644326685633,13.5679,112.7,112.62,50.3765103]
[1644326685833,13.5679,112.7,112.62,50.6265103]
[1644326687538,13.5679,112.7,112.62,63.9442103]
[1644326688140,0.25,112.7,112.62,63.9442103]
[1644326688342,13.35191698,112.71,112.62,63.9442103]
[1644326688540,2.52476433,112.7,112.62,63.9442103]
[1644326688740,2.56038131,112.71,112.62,63.6942103]
[1644326689138,2.56038131,112.71,112.62,63.9442103]
[1644326689338,15.87668131,112.71,112.62,63.9442103]
[1644326689538,2.52476433,112.7,112.62,63.9442103]
[1644326689738,13.35191698,112.71,112.62,63.9442103]
[1644326689940,2.52562889,112.7,112.62,63.9442103]
[1644326690538,2.52562889,112.7,112.62,63.6942103]
[1644326690738,13.35191698,112.71,112.62,63.9442103]
[1644326690939,2.52561189,112.7,112.62,63.9442103]
[1644326691140,13.3188,112.69,112.62,44.3765103]
[1644326691940,13.5688,112.69,112.62,44.3765103]
[1644326692341,13.5688,112.69,112.62,57.6943103]
[1644326692539,13.5688,112.69,112.62,57.9443103]
[1644326693140,0.25,112.69,112.62,57.9443103]
[1644326693341,13.3169,112.7,112.62,57.9443103]
[1644326694445,2.52635157,112.69,112.62,57.9443103]
[1644326694641,2.52635157,112.69,112.62,57.6943103]
[1644326696143,2.77635157,112.69,112.62,57.6943103]
[1644326696643,0.25,112.69,112.62,57.6943103]
[1644326697051,13.5678,112.69,112.62,57.6943103]
[1644326698048,13.5678,112.72,112.64,34.0]
[1644326698249,0.03587091,112.7,112.64,9.038]
[1644326698456,3.79062851,112.75,112.66,59.0]
[1644326698650,6.31761807,112.75,112.67,12.79]
[1644326698851,3.79062851,112.77,112.67,76.16891384]
[1644326699051,39.49808371,112.76,112.68,50.45874684]
[1644326699253,2.52698956,112.75,112.68,61.872433]
[1644326699654,2.52698956,112.75,112.68,48.561833]
[1644326700056,3.79062851,112.78,112.68,48.561833]
[1644326700355,3.79062851,112.8,112.69,66.07]
[1644326700552,3.79062851,112.81,112.69,121.1956]
[1644326700854,51.5313755,112.81,112.7,88.63810538]
[1644326701052,51.5313755,112.81,112.7,94.63810538]
[1644326701252,51.5313755,112.81,112.72,46.7044799]
[1644326701452,51.5313755,112.81,112.72,54.6234799]
[1644326701652,3.79062851,112.82,112.72,60.8734799]
[1644326701852,13.3057,112.81,112.72,74.1787799]
[1644326702452,13.3057,112.81,112.72,54.8734799]
[1644326702652,48.53196704,112.8,112.72,46.9544799]
[1644326703060,13.3061,112.79,112.72,46.9544799]
[1644326703556,48.14412851,112.82,112.72,52.9544799]
[1644326703752,6.52023,112.81,112.72,117.0634799]
[1644326703953,6.52023,112.81,112.72,57.7834799]
[1644326704153,6.52023,112.81,112.73,3.3414]
[1644326704355,41.75166062,112.8,112.74,42.45015013]
[1644326704553,6.52023,112.81,112.74,42.45015013]
[1644326704756,19.82373,112.81,112.74,42.70015013]
[1644326705554,36.02234956,112.8,112.74,42.70015013]
[1644326706856,49.32714956,112.8,112.74,42.70015013]
[1644326707263,13.3048,112.8,112.74,42.70015013]
[1644326707462,44.3512,112.83,112.75,3.3414]
[1644326708162,47.33113657,112.82,112.76,44.69966909]
[1644326708761,13.3038,112.81,112.76,44.69966909]
[1644326709160,35.59926199,112.8,112.76,44.69966909]
[1644326709361,35.59926199,112.8,112.75,3.3414]
[1644326709764,48.90436199,112.8,112.75,0.0001]
[1644326709961,2.10775549,112.79,112.75,0.0001]
[1644326710162,42.0,112.77,112.69,12.171]
[1644326710364,26.09746415,112.78,112.69,12.171]
[1644326710561,4.434,112.77,112.69,12.171]
[1644326710761,44.3804,112.76,112.69,12.171]
[1644326710984,94.10180481,112.76,112.69,12.171]
[1644326711162,13.3142,112.75,112.69,12.171]
[1644326711563,41.0,112.74,112.6,12.79]
[1644326711763,44.3974,112.71,112.6,12.79]
[1644326711968,46.41732648,112.7,112.61,47.50282146]
[1644326712766,59.73662648,112.7,112.61,53.75282146]
[1644326713167,61.84438197,112.7,112.61,47.50282146]
[1644326713766,66.31863508,112.7,112.61,47.50282146]
[1644326714366,61.88063508,112.7,112.61,47.50282146]
[1644326715070,61.88063508,112.7,112.56,17.228]
[1644326715267,17.26525311,112.69,112.54,78.9422]
[1644326715470,13.3266,112.65,112.53,47.7145]
[1644326715667,13.3266,112.65,112.53,54.24892]
[1644326715868,60.39173823,112.65,112.54,43.21102521]
[1644326716068,60.39173823,112.65,112.54,47.65102521]
[1644326716271,2.10775549,112.64,112.54,54.18486521]
[1644326716468,13.3277,112.61,112.54,49.74486521]
[1644326716668,34.37245875,112.6,112.54,49.74486521]
[1644326717270,4.441,112.63,112.54,49.74486521]
[1644326717468,2.10775549,112.64,112.54,49.74486521]
[1644326717469,12.79,112.65,112.54,49.74486521]
[1644326717670,4.44,112.64,112.54,49.74486521]
[1644326717869,6.54775549,112.64,112.54,49.74486521]
[1644326718270,13.3284,112.61,112.54,49.74486521]
[1644326718497,46.89625037,112.6,112.54,49.74486521]
[1644326719291,44.4325,112.62,112.54,49.74486521]
[1644326719697,13.3313,112.59,112.54,49.74486521]
[1644326722297,4.441,112.64,112.54,49.74486521]
[1644326722599,4.441,112.68,112.55,14.69673369]
[1644326722800,24.4024,112.69,112.56,6.53268]
[1644326722999,24.4024,112.69,112.56,19.32268]
[1644326723200,24.4024,112.69,112.56,27.47941369]
[1644326723398,41.26607658,112.68,112.57,37.12696092]
[1644326723598,41.26607658,112.68,112.56,25.57268]
[1644326723599,13.3217,112.67,112.59,46.36581793]
[1644326723900,47.89094653,112.66,112.6,6.53036]
[1644326724801,13.3255,112.65,112.6,6.53036]
[1644326724998,13.3255,112.65,112.55,49.0374]
[1644326725201,13.3255,112.65,112.56,6.53268]
[1644326725402,15.43325549,112.65,112.56,6.53268]
[1644326725600,41.34847123,112.64,112.56,48.29115336]
[1644326725802,13.3288,112.62,112.56,48.29115336]
[1644326726003,13.3288,112.62,112.56,6.53268]
[1644326726208,2.10775549,112.61,112.52,4.439]
[1644326726404,6.54775549,112.61,112.43,0.024]
[1644326726605,66.95075549,112.61,112.43,6.56423]
[1644326726904,66.95075549,112.61,112.44,36.44195327]
[1644326726905,13.3347,112.59,112.44,36.44195327]
[1644326727106,60.60222506,112.58,112.44,36.44195327]
[1644326727304,78.82152932,112.58,112.44,36.44195327]
[1644326727506,2.10775549,112.57,112.44,36.44195327]
[1644326727715,40.37784974,112.56,112.44,43.23160327]
[1644326727908,46.03783325,112.54,112.44,43.23160327]
[1644326728105,59.37793325,112.54,112.44,43.23160327]
[1644326729607,61.48568874,112.54,112.44,43.23160327]
[1644326729806,59.37793325,112.54,112.44,43.23160327]
[1644326730206,13.3401,112.54,112.44,43.23160327]
[1644326730611,13.3401,112.54,112.44,42.98160327]
[1644326730809,15.44785549,112.54,112.44,42.98160327]
[1644326731207,34.40918075,112.53,112.44,42.98160327]
[1644326731408,13.3405,112.52,112.44,42.98160327]
[1644326731605,47.00037113,112.51,112.44,42.98160327]
[1644326732806,13.3405,112.52,112.44,36.44195327]
[1644326733810,55.23861512,112.52,112.44,36.44195327]
[1644326734311,57.34637061,112.52,112.44,42.98160327]
[1644326734511,55.23861512,112.52,112.44,42.98160327]
[1644326735311,55.23861512,112.52,112.44,36.44195327]
[1644326738515,13.3405,112.52,112.44,36.69195327]
[1644326738713,13.3405,112.52,112.44,36.44195327]
[1644326739114,13.3405,112.52,112.44,36.69195327]
[1644326739313,13.3405,112.52,112.44,36.44195327]
[1644326739513,42.26841214,112.51,112.44,36.44195327]
[1644326739715,42.26841214,112.51,112.44,36.69195327]
[1644326741214,13.3405,112.52,112.44,36.69195327]
[1644326741414,13.3405,112.52,112.44,36.44195327]
[1644326741614,13.3405,112.52,112.44,36.69195327]
[1644326741814,13.3376,112.54,112.44,36.69195327]
[1644326742016,13.3376,112.54,112.45,0.024]
[1644326742215,57.46451471,112.54,112.45,0.024]
[1644326742416,13.3376,112.54,112.45,0.024]
[1644326743417,51.31565888,112.54,112.45,0.024]
[1644326744014,13.3376,112.54,112.45,0.024]
[1644326745016,43.76007972,112.53,112.45,0.024]
[1644326746416,13.3376,112.54,112.45,0.024]
[1644326747718,13.335,112.56,112.45,13.3594]
[1644326747919,6.52023,112.55,112.46,41.25900059]
[1644326748124,6.52023,112.55,112.46,94.53900059]
[1644326748324,6.52023,112.55,112.46,100.78900059]
[1644326749322,6.52023,112.55,112.46,111.46900059]
[1644326749621,52.42753236,112.55,112.46,58.18900059]
[1644326749821,65.76353236,112.55,112.46,41.50900059]
[1644326753548,65.76353236,112.55,112.46,41.25900059]
[1644326755251,19.85623,112.55,112.46,41.50900059]
[1644326756354,68.29157498,112.55,112.46,41.50900059]
[1644326756752,68.29157498,112.55,112.46,54.84380059]
[1644326757456,68.29157498,112.55,112.46,108.12380059]
[1644326757754,68.29157498,112.55,112.46,114.12380059]
[1644326758054,19.85623,112.55,112.46,114.12380059]
[1644326758258,6.52023,112.55,112.46,114.12380059]
[1644326758456,6.52023,112.55,112.46,60.84380059]
[1644326758657,7.76588526,112.55,112.46,60.59380059]
[1644326758859,9.87364075,112.55,112.46,54.59380059]
[1644326759057,38.12378211,112.54,112.46,54.59380059]
[1644326759257,6.52023,112.53,112.46,41.25900059]
[1644326759457,44.41211467,112.52,112.46,41.25900059]
[1644326759657,6.52023,112.51,112.46,41.25900059]
[1644326760258,43.89684227,112.5,112.46,41.25900059]
[1644326760458,6.52023,112.49,112.46,41.25900059]
[1644326760661,6.06439994,112.48,112.46,41.25900059]
[1644326760860,6.52023,112.47,112.46,41.25900059]
[1644326762261,6.52023,112.47,112.43,13.3631]
[1644326762462,6.52023,112.47,112.42,1.23770372]
[1644326762861,6.52023,112.47,112.41,48.5524]
[1644326763064,6.52023,112.47,112.41,54.5524]
[1644326763265,49.72858949,112.47,112.42,39.92901215]
[1644326764161,6.52023,112.47,112.42,39.92901215]
[1644326765461,51.60352122,112.47,112.42,39.92901215]
[1644326765664,6.52023,112.47,112.42,39.92901215]
[1644326769067,6.52023,112.47,112.42,40.17901215]
[1644326769369,6.52023,112.47,112.42,104.18901215]
[1644326769568,6.52023,112.47,112.42,110.18901215]
[1644326770268,6.52023,112.47,112.42,70.19941215]
[1644326770666,6.52023,112.47,112.42,53.51941215]
[1644326771068,45.71235526,112.53,112.43,39.0]
[1644326771268,5.69165526,112.54,112.43,39.274]
[1644326771470,13.3376,112.53,112.44,10.68]
[1644326771670,16.69101075,112.53,112.45,0.024]
[1644326771872,1.24565526,112.51,112.44,0.024]
[1644326772069,4.445,112.5,112.41,0.024]
[1644326772268,6.55275549,112.5,112.41,0.024]
[1644326772468,7.79841075,112.5,112.39,0.024]
[1644326772670,17.78141075,112.5,112.39,0.024]
[1644326772869,40.13464821,112.49,112.39,35.31768187]
[1644326773070,42.2424037,112.49,112.4,0.024]
[1644326773671,2.10775549,112.48,112.4,0.024]
[1644326773871,44.87975552,112.47,112.4,0.024]
[1644326774171,44.87975552,112.47,112.39,35.31768187]
[1644326774773,13.348,112.46,112.39,35.31768187]
[1644326774973,48.07056255,112.45,112.39,35.31768187]
[1644326775174,48.07056255,112.45,112.39,35.29368187]
[1644326776676,13.3481,112.44,112.36,0.024]
[1644326777677,39.89505541,112.43,112.36,36.86397362]
[1644326778087,13.3498,112.42,112.36,36.86397362]
[1644326781283,48.65281834,112.41,112.36,36.86397362]
[1644326781481,62.00351834,112.41,112.36,36.83997362]
[1644326782087,13.3507,112.41,112.36,36.83997362]
[1644326787287,13.3494,112.42,112.36,36.83997362]
[1644326787686,13.3494,112.42,112.36,37.08997362]
[1644326787986,13.3494,112.42,112.36,36.83997362]
[1644326788197,44.17014167,112.41,112.36,36.83997362]
[1644326789791,13.3522,112.4,112.36,36.83997362]
[1644326793813,55.75272735,112.4,112.36,36.83997362]
[1644326794216,13.3522,112.4,112.36,36.83997362]
[1644326795414,47.63884397,112.4,112.36,36.83997362]
[1644326796115,13.3522,112.4,112.36,36.83997362]
[1644326797218,13.3522,112.4,112.36,32.84765805]
[1644326798216,44.48224683,112.39,112.34,0.024]
[1644326798418,44.48224683,112.39,112.33,13.6254]
[1644326799218,44.48224683,112.39,112.34,42.56680669]
[1644326799818,44.48224683,112.39,112.34,42.81680669]
[1644326800418,57.83514683,112.39,112.34,42.56680669]
[1644326800618,57.83514683,112.39,112.33,0.024]
[1644326800821,57.83514683,112.39,112.32,48.7885]
[1644326801421,57.83514683,112.39,112.32,48.5385]
[1644326801621,57.83514683,112.39,112.32,91.43168185]
[1644326802324,57.83514683,112.39,112.31,1.26170372]
[1644326802527,66.46313232,112.39,112.31,1.23770372]
[1644326802724,70.91313232,112.39,112.3,0.024]
[1644326802926,83.73313232,112.39,112.3,0.024]
[1644326803726,84.97878758,112.39,112.3,0.024]
[1644326804326,83.73313232,112.39,112.3,0.024]
[1644326805128,79.28313232,112.39,112.3,0.024]
[1644326808435,77.17537683,112.39,112.3,0.024]
[1644326808638,64.35537683,112.39,112.3,0.024]
[1644326810732,64.35537683,112.39,112.3,13.3794]
[1644326810933,64.35537683,112.39,112.31,41.5139143]
[1644326811233,64.35537683,112.39,112.31,41.7639143]
[1644326813737,19.87313,112.39,112.31,55.1183143]
[1644326814238,19.87313,112.39,112.31,61.1183143]
[1644326814638,19.87313,112.39,112.31,62.35601802]
[1644326814837,19.87313,112.39,112.31,56.35601802]
[1644326815036,6.52023,112.39,112.31,127.87001802]
[1644326815237,1.24565526,112.44,112.33,53.33]
[1644326815441,12.82,112.46,112.36,13.3476]
[1644326815442,1.24565526,112.46,112.36,13.3476]
[1644326815837,1.24565526,112.46,112.37,0.024]
[1644326816038,13.3476,112.44,112.37,42.47415536]
[1644326816238,48.22507296,112.44,112.37,42.72415536]
[1644326816639,48.22507296,112.44,112.37,42.70015536]
[1644326817739,48.22507296,112.44,112.37,56.04715536]
[1644326819640,13.3476,112.44,112.37,56.04715536]
[1644326820040,45.73145526,112.48,112.37,109.37715536]
[1644326820241,6.52023,112.47,112.38,12.844]
[1644326820447,6.52023,112.47,112.4,13.3431]
[1644326820640,6.52023,112.47,112.41,36.57866736]
[1644326821441,47.77241957,112.46,112.4,13.3431]
[1644326821643,47.77241957,112.46,112.38,49.5334]
[1644326821841,47.77241957,112.46,112.38,0.024]
[1644326822041,6.52023,112.45,112.36,12.82]
[1644326822241,6.52023,112.45,112.37,0.024]
[1644326822442,6.52023,112.45,112.37,47.42716357]
[1644326823943,13.3472,112.44,112.37,61.02456357]
[1644326824645,52.597451,112.44,112.37,61.02456357]
[1644326824948,6.52023,112.45,112.37,129.06819921]
[1644326825142,6.52023,112.45,112.39,53.33]
[1644326825342,1.24565526,112.48,112.4,26.1611]
[1644326825547,1.24565526,112.5,112.4,26.1611]
[1644326825743,1.24565526,112.5,112.41,41.2846946]
[1644326825944,44.55866394,112.51,112.41,54.1046946]
[1644326826145,48.23693585,112.49,112.41,54.3546946]
[1644326826546,13.3408,112.5,112.41,54.3546946]
[1644326826945,13.3408,112.5,112.41,60.3546946]
[1644326827771,13.3408,112.5,112.43,37.33734779]
[1644326828176,13.3408,112.5,112.43,43.33734779]
[1644326828584,24.6299,112.54,112.44,62.0]
[1644326828776,2.52445097,112.55,112.44,151.8966]
[1644326828976,1.2587281,112.55,112.45,68.56053564]
[1644326829177,1.2587281,112.57,112.46,66.15]
[1644326829376,4.444,112.59,112.48,53.33]
[1644326829377,47.0455041,112.59,112.48,53.33]
[1644326829578,47.0455041,112.59,112.49,12.82]
[1644326829772,45.786776,112.59,112.5,90.05419676]
[1644326829972,1.2587281,112.61,112.51,12.82]
[1644326830171,1.2587281,112.61,112.51,18.82]
[1644326830172,7.7789581,112.61,112.51,18.82]
[1644326830374,6.52023,112.61,112.51,19.07]
[1644326830781,6.52023,112.6,112.51,19.07]
[1644326830974,40.32639859,112.59,112.52,37.37720615]
[1644326831173,40.32639859,112.59,112.52,56.19720615]
[1644326831374,40.32639859,112.59,112.52,63.77450615]
[1644326832375,6.52023,112.6,112.52,63.77450615]
[1644326832978,6.52023,112.6,112.52,12.82]
[1644326833177,6.52023,112.6,112.5,12.82]
[1644326833384,6.52023,112.6,112.48,12.82]
[1644326833578,5.7007281,112.62,112.48,19.07]
[1644326833779,5.7007281,112.62,112.48,42.5508]
[1644326834078,13.3308,112.6,112.49,48.39223491]
[1644326834278,45.81235009,112.59,112.5,12.82]
[1644326834479,45.81235009,112.59,112.51,39.040168]
[1644326834878,45.81235009,112.59,112.51,39.290168]
[1644326835278,13.3308,112.6,112.51,39.290168]
[1644326836481,53.5954354,112.59,112.51,39.040168]
[1644326838286,2.10775549,112.58,112.46,28.5558]
[1644326838488,13.3374,112.55,112.42,4.442]
[1644326838684,13.3374,112.55,112.42,12.82]
[1644326838685,4.445,112.54,112.42,12.82]
[1644326838883,6.55275549,112.54,112.42,12.82]
[1644326839083,2.10775549,112.54,112.42,19.36082]
[1644326839284,43.68224945,112.55,112.43,37.82456898]
[1644326839485,13.3378,112.54,112.43,51.16296898]
[1644326839685,15.44555549,112.54,112.43,104.49296898]
[1644326839884,13.3378,112.54,112.43,104.49296898]
[1644326840085,44.07853049,112.53,112.43,104.49296898]
[1644326840385,44.07853049,112.53,112.43,103.19296898]
[1644326841585,44.07853049,112.53,112.43,103.44296898]
[1644326841786,57.41693049,112.53,112.43,103.44296898]
[1644326841987,57.41693049,112.53,112.43,50.11296898]
[1644326842186,59.52468598,112.53,112.43,49.86296898]
[1644326842987,57.41693049,112.53,112.43,49.86296898]
[1644326843394,37.54995856,112.51,112.43,49.86296898]
[1644326843691,13.3394,112.52,112.43,49.86296898]
[1644326844496,41.2776423,112.51,112.43,50.11296898]
[1644326846388,13.3394,112.52,112.43,50.11296898]
[1644326847389,51.79116461,112.52,112.43,50.11296898]
[1644326847688,13.3394,112.52,112.43,103.44296898]
[1644326848088,13.3375,112.54,112.44,66.15]
[1644326848289,13.3375,112.54,112.44,102.9842]
[1644326848893,47.57518385,112.53,112.45,36.27683393]
[1644326849290,47.57518385,112.53,112.45,36.52683393]
[1644326849492,13.3375,112.54,112.45,36.52683393]
[1644326849693,13.3375,112.54,112.45,49.86313393]
[1644326849893,1.2587281,112.56,112.45,103.19313393]
[1644326850492,43.22321087,112.55,112.45,103.19313393]
[1644326851794,56.55891087,112.55,112.45,103.19313393]
[1644326853520,56.55891087,112.55,112.46,12.82]
[1644326853697,56.55891087,112.55,112.47,36.52456898]
[1644326854101,56.55891087,112.55,112.47,36.77456898]
[1644326854498,56.55891087,112.55,112.47,36.52456898]
[1644326854699,56.55891087,112.55,112.47,36.77456898]
[1644326856500,1.2587281,112.56,112.47,50.10856898]
[1644326856803,14.5924281,112.57,112.47,103.43856898]
[1644326857000,1.2587281,112.57,112.47,116.25856898]
[1644326857300,1.2587281,112.56,112.47,116.25856898]
[1644326858103,1.2587281,112.56,112.47,122.25856898]
[1644326858306,49.82983273,112.57,112.47,116.25856898]
[1644326858904,49.82983273,112.57,112.47,122.25856898]
[1644326859903,1.2587281,112.57,112.47,122.25856898]
[1644326860104,39.2936281,112.58,112.47,122.25856898]
[1644326860305,39.2936281,112.58,112.47,148.52186296]
[1644326860906,14.5905281,112.58,112.47,148.52186296]
[1644326861122,44.83682324,112.57,112.47,148.52186296]
[1644326861625,14.5905281,112.58,112.47,148.52186296]
[1644326862723,47.65700943,112.57,112.47,148.52186296]
[1644326863128,48.91573753,112.57,112.47,148.52186296]
[1644326863326,1.2587281,112.57,112.47,148.52186296]
[1644326863626,1.2587281,112.58,112.47,148.52186296]
[1644326863827,1.2587281,112.58,112.49,53.33]
[1644326864027,1.2587281,112.59,112.51,13.329]
[1644326864226,1.2587281,112.59,112.51,66.909]
[1644326864429,43.18084607,112.59,112.52,36.27683393]
[1644326864825,43.18084607,112.59,112.52,36.52683393]
[1644326865826,43.18084607,112.59,112.52,13.5781]
[1644326866026,56.51104607,112.59,112.5,35.6033]
[1644326866227,58.61880156,112.59,112.5,35.8533]
[1644326866427,1.2587281,112.57,112.5,35.8533]
[1644326866825,48.45412316,112.57,112.51,34.43213495]
[1644326867627,2.10775549,112.56,112.47,24.3742]
[1644326867927,3.36648359,112.56,112.47,24.3742]
[1644326868330,3.36648359,112.55,112.47,24.3742]
[1644326868533,39.08000102,112.54,112.48,40.4540171]
[1644326868728,39.08000102,112.54,112.48,40.7040171]
[1644326868932,14.5935281,112.55,112.48,40.7040171]
[1644326869128,13.3348,112.55,112.48,40.7040171]
[1644326869531,1.2587281,112.56,112.48,40.7040171]
[1644326869930,48.94422529,112.55,112.48,54.0380171]
[1644326871834,13.3342,112.55,112.48,54.0380171]
[1644326872036,14.5929281,112.55,112.48,54.0380171]
[1644326872237,1.2587281,112.55,112.48,54.0380171]
[1644326872434,13.333,112.56,112.48,54.0380171]
[1644326872435,1.2587281,112.56,112.48,107.3680171]
[1644326872633,1.2587281,112.57,112.48,145.1279171]
[1644326872933,38.06245646,112.57,112.48,145.1279171]
[1644326873834,1.2587281,112.57,112.48,145.1279171]
[1644326874436,1.2587281,112.58,112.49,1.89399899]
[1644326874640,1.2587281,112.58,112.51,66.6569]
[1644326874835,1.2587281,112.59,112.52,32.34738581]
[1644326875235,1.2587281,112.59,112.52,38.59738581]
[1644326875843,1.2587281,112.6,112.52,38.59738581]
[1644326876043,1.2587281,112.6,112.52,91.92738581]
[1644326876243,1.2587281,112.6,112.54,13.3272]
[1644326876444,1.2587281,112.59,112.54,13.3272]
[1644326876640,48.9011195,112.59,112.54,13.3272]
[1644326876840,48.9011195,112.59,112.52,32.34738581]
[1644326877039,1.2587281,112.58,112.52,32.34738581]
[1644326877245,1.2587281,112.58,112.52,45.67708581]
[1644326877440,1.2587281,112.59,112.52,45.92708581]
[1644326878241,43.68392277,112.59,112.52,45.92708581]
[1644326879039,13.3278,112.61,112.52,45.92708581]
[1644326879040,1.2587281,112.58,112.52,45.92708581]
[1644326880442,35.46462949,112.57,112.52,45.92708581]
[1644326880842,1.2587281,112.58,112.52,45.92708581]
[1644326881041,1.2587281,112.59,112.52,45.92708581]
[1644326883841,0.03625311,112.61,112.54,53.33]
[1644326884042,0.03625311,112.62,112.57,53.33]